bitfinex/quotes_BTCUSD_20240703
["timestamp","ask_amount","ask_price","bid_price","bid_amount"]
[1719980333938,0.9329028,60943.0,60942.0,0.008918]
[1719980334396,1.08268106,60943.0,60942.0,0.008918]
[1719980335058,0.9329028,60943.0,60942.0,0.008918]
[1719980337234,1.02226349,60943.0,60942.0,0.008918]
[1719980340583,0.9329028,60943.0,60942.0,0.008918]
[1719980340807,1.02226042,60943.0,60942.0,0.008918]
[1719980342063,1.02226042,60943.0,60942.0,0.135418]
[1719980342064,0.76866162,60943.0,60942.0,0.135418]
[1719980342207,0.79308546,60943.0,60942.0,0.135418]
[1719980343160,0.772604,60943.0,60942.0,0.008918]
[1719980343287,0.7935373,60943.0,60942.0,0.008918]
[1719980343807,0.79342853,60943.0,60942.0,0.008918]
[1719980344823,0.79426853,60943.0,60942.0,0.008918]
[1719980345240,0.79426853,60943.0,60942.0,0.350018]
[1719980345427,0.79426853,60943.0,60942.0,0.410018]
[1719980346095,0.79426853,60943.0,60942.0,0.350018]
[1719980349372,0.773444,60943.0,60942.0,0.350018]
[1719980349728,0.79533451,60943.0,60942.0,0.410018]
[1719980350151,0.79533451,60943.0,60942.0,0.350018]
[1719980351890,0.79533451,60943.0,60942.0,0.410018]
[1719980352799,0.79539947,60943.0,60942.0,0.410018]
[1719980353135,0.79539947,60943.0,60942.0,0.350018]
[1719980353666,0.79539947,60943.0,60942.0,0.146118]
[1719980355974,0.79535911,60943.0,60942.0,0.146118]
[1719980356435,0.7953491,60943.0,60942.0,0.146118]
[1719980356671,0.7953491,60943.0,60942.0,0.318418]
[1719980358551,0.5379621,60943.0,60942.0,0.67772149]
[1719980358777,0.36082546,60943.0,60942.0,0.67772149]
[1719980358993,0.36110801,60943.0,60942.0,0.67772149]
[1719980359198,0.52519501,60943.0,60942.0,0.67772149]
[1719980360306,0.52519501,60943.0,60942.0,0.36822149]
[1719980361479,0.52519501,60943.0,60942.0,0.30822149]
[1719980361681,0.43189501,60943.0,60942.0,0.36822149]
[1719980361890,0.52519501,60943.0,60942.0,0.36822149]
[1719980362294,0.50300736,60943.0,60942.0,0.36822149]
[1719980362521,0.52509301,60943.0,60942.0,0.36822149]
[1719980363077,0.52509301,60943.0,60942.0,0.30822149]
[1719980363940,0.52509301,60943.0,60942.0,0.008918]
[1719980364609,0.86298001,60943.0,60942.0,0.008918]
[1719980365390,0.84089436,60943.0,60942.0,0.008918]
[1719980365592,0.86305249,60943.0,60942.0,0.008918]
[1719980367304,0.68925249,60943.0,60942.0,0.008918]
[1719980368546,0.68955986,60943.0,60942.0,0.008918]
[1719980369143,0.68970833,60943.0,60942.0,0.008918]
[1719980371822,0.68947287,60943.0,60942.0,0.008918]
[1719980371933,0.59617287,60943.0,60942.0,0.008918]
[1719980372135,0.68947287,60943.0,60942.0,0.008918]
[1719980375090,0.42671477,60943.0,60942.0,0.008918]
[1719980375204,0.50875777,60943.0,60942.0,0.008918]
[1719980375407,0.67284477,60943.0,60942.0,0.008918]
[1719980378097,0.67235092,60943.0,60942.0,0.008918]
[1719980379483,0.67319092,60943.0,60942.0,0.008918]
[1719980380944,1.1935162,60943.0,60942.0,0.008918]
[1719980381148,0.94780786,60943.0,60942.0,0.008918]
[1719980381369,1.02940513,60943.0,60942.0,0.008918]
[1719980381572,0.94780786,60943.0,60942.0,0.008918]
[1719980381773,1.02940588,60943.0,60942.0,0.008918]
[1719980382339,0.94780786,60943.0,60942.0,0.008918]
[1719980382539,1.02960073,60943.0,60942.0,0.008918]
[1719980382835,1.3289564,60943.0,60942.0,0.008918]
[1719980383039,1.04550073,60943.0,60942.0,0.008918]
[1719980384435,0.99070878,60943.0,60942.0,0.008918]
[1719980384631,0.97970878,60943.0,60942.0,0.008918]
[1719980384836,1.14379578,60943.0,60942.0,0.008918]
[1719980385054,1.45100758,60943.0,60942.0,0.008918]
[1719980385457,1.45100758,60943.0,60934.0,0.29930349]
[1719980385458,0.744981,60935.0,60934.0,0.29930349]
[1719980385652,0.68368192,60935.0,60934.0,0.29930349]
[1719980385769,0.68368192,60935.0,60934.0,0.61070349]
[1719980387234,0.410272,60935.0,60934.0,0.43560349]
[1719980387470,0.26530698,60935.0,60934.0,0.66920349]
[1719980388091,0.35860698,60935.0,60934.0,0.60920349]
[1719980388297,0.52271598,60935.0,60934.0,0.66920349]
[1719980388700,0.52271598,60935.0,60934.0,0.67020349]
[1719980388927,0.44066198,60935.0,60934.0,0.67020349]
[1719980389271,0.52271598,60935.0,60934.0,0.67020349]
[1719980389479,0.35860698,60935.0,60934.0,0.67020349]
[1719980389985,0.83651598,60935.0,60934.0,0.30030349]
[1719980390181,0.83651598,60935.0,60927.0,0.138]
[1719980390182,0.082074,60920.0,60919.0,0.009218]
[1719980390409,0.643423,60920.0,60919.0,0.009218]
[1719980390632,0.99940193,60920.0,60919.0,0.009218]
[1719980390860,0.50220193,60920.0,60919.0,0.009218]
[1719980391076,0.50220193,60920.0,60919.0,0.36852149]
[1719980391077,0.52551084,60920.0,60919.0,0.36852149]
[1719980391280,0.68965984,60920.0,60919.0,0.30852149]
[1719980391743,0.70365984,60920.0,60919.0,0.30852149]
[1719980391927,0.68965984,60920.0,60919.0,0.62072149]
[1719980392141,0.00084,60943.0,60936.0,0.06]
[1719980392342,0.00084,60943.0,60938.0,0.35930349]
[1719980392484,0.00084,60943.0,60931.0,0.01626904]
[1719980392485,0.246137,60942.0,60941.0,0.35930349]
[1719980392685,0.410229,60942.0,60941.0,0.29930349]
[1719980393096,0.574321,60942.0,60941.0,0.29930349]
[1719980393523,0.574321,60942.0,60938.0,0.06]
[1719980393524,0.0933,60942.0,60938.0,0.06]
[1719980393724,0.08205,60938.0,60937.0,0.35930349]
[1719980393926,0.08205,60938.0,60937.0,0.29930349]
[1719980393927,0.246151,60938.0,60937.0,0.29930349]
[1719980394126,0.2334,60939.0,60933.0,0.06]
[1719980394334,0.315455,60934.0,60933.0,0.06]
[1719980394530,0.315455,60934.0,60931.0,0.31557253]
[1719980394531,0.2334,60934.0,60931.0,0.29930349]
[1719980394730,0.410292,60932.0,60931.0,0.29930349]
[1719980395300,0.2334,60934.0,60930.0,0.35930349]
[1719980395301,0.4103,60931.0,60930.0,0.35930349]
[1719980395928,0.4103,60931.0,60930.0,0.29930349]
[1719980396753,0.4113,60931.0,60930.0,0.36230349]
[1719980398620,0.4113,60931.0,60930.0,0.065]
[1719980398621,0.4123,60931.0,60930.0,0.065]
[1719980398769,0.4123,60931.0,60930.0,0.005]
[1719980398975,0.4123,60931.0,60930.0,0.065]
[1719980399752,0.4103,60931.0,60930.0,0.06]
[1719980400169,0.42586879,60931.0,60930.0,0.06]
[1719980400401,0.08406,60931.0,60930.0,0.50000349]
[1719980400660,0.002,60931.0,60930.0,0.50000349]
[1719980401214,0.005,60931.0,60930.0,0.50000349]
[1719980401504,0.003,60931.0,60930.0,0.50000349]
[1719980401688,0.082057,60933.0,60932.0,0.35930349]
[1719980401995,0.082057,60933.0,60932.0,0.37557253]
[1719980402991,0.092057,60933.0,60932.0,0.37557253]
[1719980403455,0.087057,60933.0,60932.0,0.37557253]
[1719980404173,0.005,60933.0,60932.0,0.45763053]
[1719980404394,0.082051,60938.0,60937.0,0.35930349]
[1719980405620,0.086051,60938.0,60937.0,0.35930349]
[1719980405812,0.090051,60938.0,60937.0,0.35930349]
[1719980407533,0.008,60938.0,60937.0,0.70230349]
[1719980408462,0.008,60938.0,60937.0,0.67230349]
[1719980408670,0.082046,60942.0,60941.0,0.06]
[1719980408874,0.082046,60942.0,60941.0,0.07626904]
[1719980409296,0.00084,60951.0,60942.0,1.27531849]
[1719980409512,0.00084,60951.0,60942.0,1.43561729]
[1719980409932,0.00084,60951.0,60942.0,1.27152729]
[1719980410504,0.00084,60951.0,60942.0,1.43561729]
[1719980410684,0.00084,60951.0,60942.0,1.27152729]
[1719980410927,0.00084,60951.0,60942.0,1.43561729]
[1719980411156,0.00084,60951.0,60942.0,1.73561729]
[1719980411561,0.00084,60951.0,60942.0,1.73861729]
[1719980411967,0.00084,60951.0,60942.0,1.73561729]
[1719980412196,0.00084,60951.0,60942.0,1.74661729]
[1719980412392,0.00184,60943.0,60942.0,1.74661729]
[1719980412595,0.00184,60943.0,60942.0,1.44961729]
[1719980412799,0.00184,60943.0,60942.0,1.28552729]
[1719980412981,0.00184,60943.0,60942.0,1.28252729]
[1719980413491,0.00184,60943.0,60942.0,0.68200349]
[1719980413690,0.00184,60943.0,60942.0,0.92813849]
[1719980414055,0.00184,60943.0,60942.0,0.95813849]
[1719980414256,0.00184,60943.0,60942.0,1.12222849]
[1719980414466,0.00284,60943.0,60942.0,1.13322849]
[1719980415089,0.00284,60943.0,60942.0,1.45761729]
[1719980415293,0.00284,60943.0,60942.0,1.75761729]
[1719980418545,0.00284,60943.0,60942.0,1.92170729]
[1719980419146,0.00284,60943.0,60942.0,2.12170729]
[1719980419352,0.00284,60943.0,60942.0,2.22170729]
[1719980419526,0.00084,60951.0,60950.0,1.56774149]
[1719980419729,0.00084,60951.0,60950.0,1.74430933]
[1719980419933,0.00084,60951.0,60950.0,1.44430933]
[1719980420143,0.00084,60951.0,60950.0,1.74430933]
[1719980420817,0.00084,60951.0,60950.0,1.75330933]
[1719980421013,0.00084,60951.0,60950.0,1.74430933]
[1719980421332,0.00084,60951.0,60950.0,1.75830933]
[1719980421701,0.00084,60951.0,60950.0,1.77230933]
[1719980421817,0.00184,60951.0,60950.0,1.77230933]
[1719980422738,0.00184,60951.0,60950.0,1.97230933]
[1719980423094,0.00184,60951.0,60950.0,2.07230933]
[1719980424153,0.00184,60951.0,60950.0,2.25937733]
[1719980424559,0.00184,60951.0,60950.0,2.23637733]
[1719980424849,0.00184,60951.0,60950.0,2.22010829]
[1719980425494,0.00184,60951.0,60950.0,2.45350829]
[1719980425973,0.00184,60951.0,60950.0,2.47650829]
[1719980429749,0.00084,60973.0,60961.0,0.79940049]
[1719980429962,0.00084,60973.0,60961.0,1.14000733]
[1719980430774,0.00084,60973.0,60961.0,1.44000733]
[1719980431400,0.00084,60973.0,60961.0,1.60404633]
[1719980431608,0.00084,60973.0,60961.0,1.80404633]
[1719980431806,0.00084,60973.0,60961.0,2.05064633]
[1719980432045,0.00084,60973.0,60961.0,2.05464633]
[1719980432652,0.00084,60973.0,60961.0,2.04764633]
[1719980432954,0.00084,60973.0,60961.0,2.42994633]
[1719980433239,0.00084,60973.0,60961.0,2.47883775]
[1719980433452,0.00084,60973.0,60961.0,2.47880637]
[1719980434396,0.00084,60973.0,60961.0,2.47879676]
[1719980434606,0.00084,60973.0,60961.0,2.42994633]
[1719980435023,0.00084,60973.0,60961.0,2.41367729]
[1719980435215,0.00084,60973.0,60961.0,2.40167729]
[1719980435445,0.00084,60973.0,60961.0,2.47496736]
[1719980435713,0.00084,60973.0,60961.0,2.48496736]
[1719980436138,0.00084,60973.0,60961.0,2.85907895]
[1719980436755,0.00084,60973.0,60972.0,0.79932549]
[1719980436980,0.00084,60973.0,60972.0,0.97589333]
[1719980438266,0.00084,60973.0,60972.0,1.13990233]
[1719980438462,0.00084,60973.0,60972.0,1.43990233]
[1719980439158,0.00084,60973.0,60972.0,1.13990233]
[1719980439967,0.3101,60985.0,60984.0,0.35930349]
[1719980440137,0.1735,60985.0,60984.0,0.48756053]
[1719980440450,0.1735,60985.0,60984.0,0.40557253]
[1719980441433,0.1735,60985.0,60984.0,0.38457253]
[1719980442016,0.1735,60985.0,60984.0,0.41457253]
[1719980442338,0.1735,60985.0,60984.0,0.65153753]
[1719980442966,0.1735,60985.0,60984.0,0.49656053]
[1719980443320,0.1423,60988.0,60987.0,0.06]
[1719980444416,0.1423,60988.0,60987.0,0.065]
[1719980445662,0.1423,60988.0,60987.0,0.07]
[1719980446847,0.1423,60988.0,60987.0,0.36930349]
[1719980447687,0.002,60989.0,60988.0,0.35930349]
[1719980447844,0.002,60989.0,60988.0,0.48755553]
[1719980448042,0.002,60989.0,60988.0,0.65152153]
[1719980448253,0.002,60989.0,60988.0,1.08326273]
[1719980448625,0.002,60989.0,60988.0,1.11326273]
[1719980448776,0.002,60989.0,60988.0,1.11726273]
[1719980449362,0.002,60989.0,60988.0,1.14572981]
[1719980449948,0.257674,60995.0,60994.0,0.35930349]
[1719980450541,0.421621,60995.0,60994.0,0.43261668]
[1719980450740,0.421621,60995.0,60994.0,0.35930349]
[1719980452402,0.585568,60995.0,60994.0,0.35930349]
[1719980452583,0.585568,60995.0,60994.0,0.29930349]
[1719980452781,0.585568,60995.0,60993.0,0.06]
[1719980452782,0.414332,60992.0,60991.0,0.40822059]
[1719980452989,0.414332,60992.0,60991.0,0.29930349]
[1719980452990,0.789632,60992.0,60991.0,0.29930349]
[1719980453186,1.117542,60992.0,60991.0,0.29930349]
[1719980454709,0.701702,60990.0,60989.0,0.0489171]
[1719980454909,0.409644,60989.0,60988.0,0.36448963]
[1719980455169,0.573607,60989.0,60988.0,0.31557253]
[1719980455374,0.706707,60989.0,60988.0,0.31557253]
[1719980455550,0.706707,60989.0,60988.0,0.36453883]
[1719980455722,0.706707,60989.0,60988.0,0.31557253]
[1719980455930,0.706707,60989.0,60988.0,0.36453883]
[1719980456092,0.706707,60989.0,60988.0,0.36753883]
[1719980456318,0.706707,60989.0,60988.0,0.36754383]
[1719980456528,0.706707,60989.0,60988.0,0.31857253]
[1719980457454,0.706707,60989.0,60988.0,0.32157253]
[1719980459134,0.706707,60989.0,60988.0,0.31857253]
[1719980459544,0.706707,60989.0,60988.0,0.31557253]
[1719980460151,0.706707,60989.0,60988.0,0.29930349]
[1719980460577,0.176,60988.0,60983.0,0.29930349]
[1719980460772,0.00084,60996.0,60983.0,0.31557253]
[1719980460773,0.245965,60984.0,60983.0,0.31557253]
[1719980460970,0.573919,60984.0,60983.0,0.37557253]
[1719980461385,0.865419,60984.0,60983.0,0.37557253]
[1719980462379,0.865419,60984.0,60983.0,0.31557253]
[1719980462594,0.865419,60984.0,60983.0,0.37957253]
[1719980462765,0.701442,60984.0,60983.0,0.37957253]
[1719980463770,0.701442,60984.0,60983.0,0.38357253]
[1719980465773,0.701442,60984.0,60983.0,0.36730349]
[1719980467086,0.701442,60984.0,60983.0,0.30730349]
[1719980468653,0.701442,60984.0,60983.0,0.36730349]
[1719980471162,0.163968,60988.0,60987.0,0.35930349]
[1719980471163,0.545551,60988.0,60987.0,0.35930349]
[1719980471393,0.545551,60988.0,60987.0,0.37557253]
[1719980471599,0.72311009,60988.0,60987.0,0.37557253]
[1719980472927,0.72311009,60988.0,60987.0,0.31557253]
[1719980473428,0.72311009,60988.0,60987.0,0.37557253]
[1719980473831,0.709519,60988.0,60987.0,0.37557253]
[1719980474000,0.72310674,60988.0,60987.0,0.37557253]
[1719980474533,0.709519,60988.0,60987.0,0.37557253]
[1719980475740,0.709519,60988.0,60987.0,0.31557253]
[1719980475943,0.72310696,60988.0,60987.0,0.31557253]
[1719980476529,0.72310696,60988.0,60987.0,0.29930349]
[1719980477195,0.709519,60988.0,60987.0,0.29930349]
[1719980477355,0.72310711,60988.0,60987.0,0.29930349]
[1719980477804,0.59000909,60988.0,60987.0,0.35930349]
[1719980477994,0.245951,60988.0,60987.0,0.35930349]
[1719980478191,0.245932,60992.0,60991.0,0.35930349]
[1719980478365,0.081977,60992.0,60991.0,0.37557253]
[1719980478587,0.245932,60992.0,60991.0,0.37557253]
[1719980479727,0.081977,60992.0,60991.0,0.37557253]
[1719980480071,0.00084,60996.0,60995.0,0.35930349]
[1719980480632,0.00084,60996.0,60995.0,0.49600349]
[1719980481399,0.00084,60996.0,60995.0,0.35930349]
[1719980483533,0.00084,60996.0,60995.0,0.47127649]
[1719980483733,0.00084,60996.0,60995.0,0.38930349]
[1719980484018,0.00084,60996.0,60995.0,0.95946929]
[1719980484201,0.00084,60996.0,60995.0,1.41811629]
[1719980484394,0.00084,60996.0,60995.0,0.35930349]
[1719980484395,0.082812,60996.0,60995.0,0.35930349]
[1719980485158,0.00084,60996.0,60995.0,0.79852229]
[1719980485360,0.00084,60996.0,60995.0,0.36230349]
[1719980485562,0.00084,60996.0,60995.0,0.36530349]
[1719980487410,0.00084,60996.0,60995.0,0.90697529]
[1719980487648,0.00084,60996.0,60995.0,0.006]
[1719980487649,0.480157,60996.0,60995.0,0.006]
[1719980487852,1.095547,60996.0,60995.0,0.006]
[1719980488537,0.862147,60996.0,60995.0,0.003]
[1719980488744,1.095547,60996.0,60995.0,0.003]
[1719980488938,0.409867,60995.0,60994.0,0.35930349]
[1719980489264,0.409867,60995.0,60994.0,0.37557253]
[1719980489800,0.24592,60995.0,60994.0,0.37557253]
[1719980490030,0.081973,60995.0,60994.0,0.37557253]
[1719980490257,0.24592,60995.0,60994.0,0.37557253]
[1719980490668,0.081973,60995.0,60994.0,0.37557253]
[1719980490842,0.00084,60996.0,60995.0,0.35930349]
[1719980491051,0.00084,60996.0,60995.0,0.38930349]
[1719980491225,0.00084,60996.0,60995.0,0.48860349]
[1719980491432,0.00084,60996.0,60995.0,0.57057649]
[1719980491968,0.00084,60996.0,60995.0,0.60057649]
[1719980492987,0.00084,60996.0,60995.0,1.09176929]
[1719980493472,0.00084,60996.0,60995.0,1.09476929]
[1719980495608,0.00084,60996.0,60995.0,1.42881629]
[1719980498949,0.00084,60996.0,60995.0,1.23486929]
[1719980499159,0.00084,60996.0,60995.0,1.26486929]
[1719980500271,0.00084,60996.0,60995.0,1.23486929]
[1719980500483,0.00084,60996.0,60995.0,1.26486929]
[1719980501459,0.00084,60996.0,60995.0,1.07092229]
[1719980501655,0.00084,60996.0,60995.0,1.10092229]
[1719980502501,0.00084,60996.0,60995.0,0.36530349]
[1719980502844,0.00084,60996.0,60995.0,0.35930349]
[1719980503049,0.00084,60996.0,60995.0,0.37130349]
[1719980503265,0.00084,60996.0,60995.0,0.38330349]
[1719980503765,0.00084,60996.0,60995.0,0.38630349]
[1719980504162,0.00084,60996.0,60995.0,0.37130349]
[1719980504555,0.00450314,61000.0,60995.0,0.37130349]
[1719980504754,0.00450314,61000.0,60999.0,0.35930349]
[1719980505334,0.25040414,61000.0,60999.0,0.35930349]
[1719980506433,0.25040414,61000.0,60999.0,0.36530349]
[1719980506662,0.25040414,61000.0,60999.0,0.37230349]
[1719980507429,0.25040414,61000.0,60999.0,0.36530349]
[1719980507858,0.25040414,61000.0,60999.0,0.36930349]
[1719980508651,0.25040414,61000.0,60999.0,0.36330349]
[1719980508838,0.25040414,61000.0,60999.0,0.36730349]
[1719980512891,0.25040414,61000.0,60999.0,0.36330349]
[1719980513111,0.41433814,61000.0,60999.0,0.29930349]
[1719980513307,0.245908,60998.0,60997.0,0.29930349]
[1719980513505,0.55493614,60998.0,60997.0,0.31557253]
[1719980513720,0.71887514,60998.0,60997.0,0.31557253]
[1719980514460,0.71887514,60998.0,60997.0,0.01626904]
[1719980514647,0.87867514,60998.0,60997.0,0.01626904]
[1719980514988,0.865086,60998.0,60997.0,0.01626904]
[1719980515295,0.878675,60998.0,60997.0,0.01626904]
[1719980518248,0.865086,60998.0,60997.0,0.01626904]
[1719980518505,0.87867657,60998.0,60997.0,0.01626904]
[1719980518722,0.87867657,60998.0,60994.0,0.35930349]
[1719980518723,0.409867,60995.0,60994.0,0.35930349]
[1719980518915,0.643267,60995.0,60994.0,0.37557253]
[1719980519942,0.643267,60995.0,60994.0,0.37957253]
[1719980520434,0.643267,60995.0,60994.0,0.38357253]
[1719980521418,0.643267,60995.0,60994.0,0.02426904]
[1719980522163,0.643267,60995.0,60994.0,0.32357253]
[1719980522365,0.643267,60995.0,60994.0,0.02426904]
[1719980523534,0.807214,60995.0,60994.0,0.02426904]
[1719980523934,0.807214,60995.0,60994.0,0.008]
[1719980524339,0.935114,60995.0,60994.0,0.008]
[1719980524959,0.00450314,61000.0,60997.0,0.35930349]
[1719980525154,0.00450314,61000.0,60999.0,0.35930349]
[1719980525155,0.08647014,61000.0,60999.0,0.35930349]
[1719980528055,0.00450314,61000.0,60999.0,0.35930349]
[1719980528277,0.00450314,61000.0,60999.0,0.36330349]
[1719980528641,0.00450314,61000.0,60999.0,0.36730349]
[1719980529222,0.00450314,61000.0,60999.0,0.61320849]
[1719980529419,0.00450314,61000.0,60999.0,0.77710849]
[1719980529662,0.00450314,61000.0,60999.0,0.61317149]
[1719980530972,0.00450314,61000.0,60999.0,0.60917149]
[1719980531365,0.00450314,61000.0,60999.0,0.61317149]
[1719980531785,0.00450314,61000.0,60999.0,0.62117149]
[1719980531987,0.00450314,61000.0,60999.0,0.70314049]
[1719980532209,0.00450314,61000.0,60999.0,0.78510849]
[1719980538308,0.00450314,61000.0,60999.0,0.81510849]
[1719980538893,0.00450314,61000.0,60999.0,1.26434429]
[1719980539212,0.00450314,61000.0,60999.0,1.42828129]
[1719980539413,0.00450314,61000.0,60999.0,1.23434429]
[1719980539633,0.00450314,61000.0,60999.0,1.26434429]
[1719980540535,0.00450314,61000.0,60999.0,0.62120849]
[1719980543207,0.00450314,61000.0,60999.0,0.62213249]
[1719980543419,0.00450314,61000.0,60999.0,0.61413249]
[1719980543847,0.00450314,61000.0,60999.0,0.61613249]
[1719980544050,0.00450314,61000.0,60999.0,0.62813249]
[1719980544252,0.00450314,61000.0,60999.0,0.61813249]
[1719980544454,0.00450314,61000.0,60999.0,0.60613249]
[1719980544665,0.00450314,61000.0,60999.0,0.61813249]
[1719980545303,0.00450314,61000.0,60999.0,0.63013249]
[1719980545645,0.00450314,61000.0,60999.0,0.61813249]
[1719980545843,0.00450314,61000.0,60999.0,0.45419549]
[1719980546046,0.00450314,61000.0,60999.0,0.37222749]
[1719980546448,0.00450314,61000.0,60999.0,0.31222749]
[1719980546449,0.54973814,61000.0,60999.0,0.31222749]
[1719980546703,0.71367214,61000.0,60999.0,0.000924]
[1719980546918,0.99358183,61000.0,60999.0,0.000924]
[1719980547106,1.31781463,61000.0,60999.0,0.012924]
[1719980547265,1.41781463,61000.0,60999.0,0.024924]
[1719980547651,1.41781463,61000.0,60999.0,0.012924]
[1719980547854,1.65071463,61000.0,60999.0,0.000924]
[1719980548762,1.65071463,61000.0,60999.0,0.001924]
[1719980549209,1.65071246,61000.0,60999.0,0.001924]
[1719980549406,1.55239825,61000.0,60999.0,0.001924]
[1719980549617,1.55239825,61000.0,60999.0,0.00186843]
[1719980549753,1.55239825,61000.0,60999.0,0.00286843]
[1719980549968,2.01633225,61000.0,60999.0,0.00286843]
[1719980550277,2.01633225,61000.0,60999.0,0.00086843]
[1719980550518,2.19969531,61000.0,60999.0,0.00286843]
[1719980552063,2.19932963,61000.0,60999.0,0.00286843]
[1719980552396,2.02537326,61000.0,60999.0,0.00286843]
[1719980556187,2.04616967,61000.0,60999.0,0.00286843]
[1719980559882,2.04616967,61000.0,60989.0,0.000924]
[1719980559883,1.038524,60990.0,60989.0,0.000924]
[1719980560087,1.5317228,60990.0,60989.0,0.000924]
[1719980560440,1.8317228,60990.0,60989.0,0.000924]
[1719980560872,1.67212448,60990.0,60989.0,0.000924]
[1719980561076,1.67212448,60990.0,60989.0,0.001924]
[1719980561077,1.69512448,60990.0,60989.0,0.001924]
[1719980561630,2.02304648,60990.0,60989.0,0.001924]
[1719980561886,2.18340954,60990.0,60989.0,0.001924]
[1719980562042,2.41630954,60990.0,60989.0,0.001924]
[1719980562268,2.25594648,60990.0,60989.0,0.001924]
[1719980562452,1.037896,60984.0,60983.0,0.000924]
[1719980562663,1.7317948,60984.0,60983.0,0.000924]
[1719980562853,1.8317948,60984.0,60983.0,0.000924]
[1719980563080,1.9957718,60984.0,60983.0,0.000924]
[1719980563686,2.0197718,60984.0,60983.0,0.000924]
[1719980564003,2.18913486,60984.0,60983.0,0.001924]
[1719980564205,1.88813486,60984.0,60983.0,0.001924]
[1719980564382,1.87913486,60984.0,60983.0,0.000924]
[1719980564583,1.88813486,60984.0,60983.0,0.002924]
[1719980564794,1.89713486,60984.0,60983.0,0.002924]
[1719980565955,1.7367718,60984.0,60983.0,0.002924]
[1719980566129,1.5727948,60984.0,60983.0,0.002924]
[1719980570745,1.5941915,60984.0,60983.0,0.002924]
[1719980571892,1.4544915,60984.0,60983.0,0.002924]
[1719980572856,1.3382915,60984.0,60983.0,0.002924]
[1719980573076,1.4314915,60984.0,60983.0,0.002924]
[1719980573703,1.4314915,60984.0,60983.0,0.017404]
[1719980582437,1.61093681,60984.0,60983.0,0.017404]
[1719980590473,0.574042,60971.0,60970.0,0.1331]
[1719980590649,0.667242,60971.0,60970.0,0.1331]
[1719980591432,0.667242,60971.0,60965.0,0.72818399]
[1719980591433,0.585236,60971.0,60965.0,0.72818399]
[1719980591648,0.082011,60967.0,60966.0,0.1331]
[1719980591971,0.503257,60967.0,60966.0,0.1331]
[1719980592392,0.66728,60967.0,60966.0,0.1331]
[1719980593831,0.66828,60967.0,60966.0,0.1391]
[1719980594480,0.66828,60967.0,60966.0,0.006]
[1719980594908,0.66828,60967.0,60966.0,0.3126]
[1719980595097,0.66928,60967.0,60966.0,0.3126]
[1719980596829,0.66928,60967.0,60966.0,0.6449805]
[1719980597235,0.66928,60967.0,60966.0,0.5849805]
[1719980597860,0.66928,60967.0,60966.0,0.6449805]
[1719980597861,0.412057,60967.0,60966.0,0.6449805]
[1719980598016,0.505257,60967.0,60966.0,0.5849805]
[1719980598554,0.505257,60967.0,60966.0,0.6449805]
[1719980599751,0.66928,60967.0,60966.0,0.3126]
[1719980602347,0.66928,60967.0,60966.0,0.006]
[1719980603099,0.248034,60967.0,60966.0,0.3383805]
[1719980603297,0.002,60967.0,60966.0,0.96878399]
[1719980603511,0.002,60967.0,60966.0,1.53914479]
[1719980603709,0.163986,60981.0,60980.0,0.29930349]
[1719980603710,0.081992,60981.0,60980.0,0.29930349]
[1719980603932,0.503162,60981.0,60980.0,0.63168399]
[1719980604142,0.503162,60981.0,60980.0,0.87688399]
[1719980605345,0.503162,60981.0,60980.0,0.60450349]
[1719980605802,0.508162,60981.0,60980.0,0.60450349]
[1719980606344,0.512162,60981.0,60980.0,0.60450349]
[1719980606947,0.676147,60981.0,60980.0,0.3052]
[1719980610902,0.245996,60977.0,60976.0,0.57168399]
[1719980611104,0.409994,60977.0,60976.0,0.57168399]
[1719980612372,0.409994,60977.0,60976.0,0.63168399]
[1719980612751,0.409994,60977.0,60976.0,0.92208399]
[1719980614227,0.245996,60977.0,60976.0,0.92208399]
[1719980615837,0.175196,60978.0,60977.0,0.93198399]
[1719980616241,0.0932,60978.0,60977.0,0.93198399]
[1719980616493,0.0932,60980.0,60979.0,0.93198399]
[1719980616995,0.175194,60980.0,60979.0,0.93198399]
[1719980618583,0.178194,60980.0,60979.0,0.93198399]
[1719980619198,0.182194,60980.0,60979.0,0.93198399]
[1719980620567,0.346182,60980.0,60979.0,0.93198399]
[1719980621827,0.346182,60980.0,60979.0,0.57168399]
[1719980622264,0.51017,60980.0,60979.0,0.57168399]
[1719980622462,0.346182,60980.0,60979.0,0.29930349]
[1719980622707,0.51017,60980.0,60979.0,0.29930349]
[1719980623024,0.082,60975.0,60974.0,0.1409]
[1719980623224,0.339201,60975.0,60974.0,0.1409]
[1719980623420,0.503202,60975.0,60974.0,0.1409]
[1719980623641,0.503202,60975.0,60974.0,0.44020349]
[1719980624241,0.503202,60975.0,60974.0,0.44420349]
[1719980625322,0.503202,60975.0,60974.0,0.71658399]
[1719980625792,0.503202,60975.0,60974.0,0.71958399]
[1719980628792,0.503202,60975.0,60974.0,0.77958399]
[1719980629023,0.503202,60975.0,60974.0,0.71958399]
[1719980629223,0.339201,60975.0,60974.0,0.77958399]
[1719980631778,0.503202,60975.0,60974.0,0.77958399]
[1719980632341,0.503202,60975.0,60974.0,0.71958399]
[1719980636430,0.503202,60975.0,60974.0,0.77958399]
[1719980637015,0.503202,60975.0,60974.0,0.71958399]
[1719980637822,0.503202,60975.0,60974.0,0.77958399]
[1719980639675,0.339201,60975.0,60974.0,0.77958399]
[1719980640678,0.503202,60975.0,60974.0,0.77958399]
[1719980641187,0.339201,60975.0,60974.0,0.77958399]
[1719980641383,0.339201,60975.0,60974.0,0.77558399]
[1719980642191,0.339201,60975.0,60974.0,0.77258399]
[1719980642334,0.339201,60975.0,60974.0,0.77858399]
[1719980642549,0.503202,60975.0,60974.0,0.77858399]
[1719980642749,0.504042,60975.0,60974.0,0.77858399]
[1719980643156,0.504042,60975.0,60974.0,0.64068399]
[1719980644004,0.410842,60975.0,60974.0,0.64068399]
[1719980644294,0.504042,60975.0,60974.0,0.63768399]
[1719980644435,0.504042,60975.0,60974.0,0.64368399]
[1719980646234,0.504042,60975.0,60974.0,0.31130349]
[1719980647078,0.504042,60975.0,60974.0,0.30530349]
[1719980647255,0.504042,60975.0,60974.0,0.29930349]
[1719980647460,0.504042,60975.0,60974.0,0.57168399]
[1719980647461,0.506042,60975.0,60974.0,0.57168399]
[1719980647701,0.506042,60975.0,60974.0,0.63168399]